Workbook

Sheet JSE Handbook info (hidden)
C2: Re-calculated the rations based on the formulas given and got a different answer to the database data given
C4: PREPARED BY HARMONY
A7: Formulas | C7: Financial Statistics
C8: (R million) | E8: Current | F8: Dec 11 | G8: Jun 11 | H8: Jun 10 | I8: Jun 09 | J8: June 08 | K8: Jun 07
F9: 6 months | G9: Final | H9: Final | I9: Final | J9: Final | K9: Final
C11: I01 | D11: Revenue | E11: =+'Publish IS (R)'!H10 -> 15682 | F11: 8749 | G11: 12445 | H11: 11284 | I11: 11496 | J11: 9210 | K11: 8037
C12: I02 | D12: Not in use | E12: 0 | F12: 0 | G12: 0 | H12: 0 | I12: 0 | J12: 0 | K12: 0
C13: I03 | D13: Not in use | E13: 0 | F13: 0 | G13: 0 | H13: 0 | I13: 0 | J13: 0 | K13: 0
A14: I04 = I05 + I06 + I07 + I08 + I09 + I10 + I11 + I12 + I13 + I15 + I16 + I17 + I18 + I19 | C14: I04 | D14: Cost of sales | E14: =SUM(E15:E27) ->  | F14: =SUM(F15:F27) -> 6529 | G14: 11615 | H14: 10484 | I14: 9659 | J14: 8184 | K14: 6687
C15: I05 | D15: Production costs (includes royalties) | E15: =-'Publish IS (R)'!H14-'Publish IS (R)'!#REF! ->  | F15: 5366 | G15: =9074+96 -> 9170 | H15: 8358 | I15: 7657 | J15: 6673 | K15: 6021
C16: I06 | D16: Amortisation and depreciation | E16: =-'Publish IS (R)'!H15 -> 2143 | F16: 1003 | G16: 1776 | H16: =1326+49 -> 1375 | I16: =1176+77 -> 1253 | J16: 846 | K16: =734+29 -> 763
C17: I07 | D17: Impairment of assets | E17: =-'Publish IS (R)'!H16 -> 1439 | F17: 0 | G17: 264 | H17: 331 | I17: 546 | J17: 316 | K17: -134
C18: I08 | D18: Employment termination and restructuring costs | E18: =-'Publish IS (R)'!#REF! ->  | F18: 51 | G18: 158 | H18: 205 | I18: 39 | J18: 212 | K18: 0
C19: I09 | D19: Care and maintenance cost | E19: =-'Publish IS (R)'!#REF! ->  | F19: 54 | G19: 124 | H19: 57 | I19: 44 | J19: 74 | K19: 56
C20: I11 | D20: Provision for post retirement benefits | E20: =-'Publish IS (R)'!#REF! ->  | F20: 0 | G20: 0 | H20: -19 | I20: 2 | J20: 9 | K20: -13
C21: I12 | D21: Share based cost | E21: =-'Publish IS (R)'!#REF! ->  | F21: 49 | G21: 136 | H21: 148 | I21: 113 | J21: 42 | K21: 41
C22: I14 | D22: Rehabilitation expenditure | E22: =-'Publish IS (R)'!#REF! ->  | F22: 6 | G22: 74 | H22: 29 | I22: 5 | J22: 12 | K22: -47
C23: I15 | D23: Other items | E23: =-'Publish IS (R)'!#REF!-'Publish IS (R)'!#REF! ->  | F23: 0 | G23: -87 | H23: 0 | I23: 0 | J23: 0 | K23: 0
C24: I16 | D24: ? | E24: 0 | F24: 0 | G24: 0 | H24: 0 | I24: 0 | J24: 0 | K24: 0
C25: I17 | D25: ? | E25: 0 | F25: 0 | G25: 0 | H25: 0 | I25: 0 | J25: 0 | K25: 0
C26: I18 | D26: ? | E26: 0 | F26: 0 | G26: 0 | H26: 0 | I26: 0 | J26: 0 | K26: 0
C27: I19 | D27: ? | E27: 0 | F27: 0 | G27: 0 | H27: 0 | I27: 0 | J27: 0 | K27: 0
A28: I20 = I01 - I04 | C28: I20 | D28: Gross profit/(loss) | E28: =+E11-E14 ->  | F28: =+F11-F14 -> 2220 | G28: 830 | H28: 800 | I28: 1837 | J28: 1026 | K28: 1350
C29: I21 | D29: Corporate, administration and other expenditure (includes social investment expenditure) | E29: =-'Publish IS (R)'!H21-'Publish IS (R)'!H22 -> 519 | F29: 203 | G29: =354+84 -> 438 | H29: =382+81 -> 463 | I29: =329+33 -> 362 | J29: 228 | K29: 226
C30: I22 | D30: (Profit)/loss on sale of property, plant and equipment | E30: =-'Publish IS (R)'!H24 -> -30 | F30: -30 | G30: -29 | H30: -104 | I30: -947 | J30: -4 | K30: -182
C31: I23 | D31: Exploration expenditure | E31: =-'Publish IS (R)'!H23 -> 458 | F31: 196 | G31: 353 | H31: 219 | I31: 259 | J31: 205 | K31: 194
C32: I24 | D32: ? | E32: 0 | F32: 0 | G32: 0 | H32: 0 | I32: 0 | J32: 0 | K32: 0
C33: I25 | D33: ? | E33: 0 | F33: 0 | G33: 0 | H33: 0 | I33: 0 | J33: 0 | K33: 0
C34: I26 | D34: ? | E34: 0 | F34: 0 | G34: 0 | H34: 0 | I34: 0 | J34: 0 | K34: 0
C35: I27 | D35: ? | E35: 0 | F35: 0 | G35: 0 | H35: 0 | I35: 0 | J35: 0 | K35: 0
C36: I28 | D36: ? | E36: 0 | F36: 0 | G36: 0 | H36: 0 | I36: 0 | J36: 0 | K36: 0
C37: I29 | D37: Other items | E37: =-'Publish IS (R)'!H25 -> 205 | F37: -42 | G37: 24 | H37: 58 | I37: 101 | J37: =90+4 -> 94 | K37: =-175+182 -> 7
A38: I30 = I20 - I21 - I22 - I23 - I24 - I25 - I26 - I27 - I28 - I29 | C38: I30 | D38: Operating profit/(loss) | E38: =+E28-E29-E30-E31-E32-E33-E34-E35-E36-E37 ->  | F38: =+F28-F29-F30-F31-F32-F33-F34-F35-F36-F37 -> 1893 | G38: 44 | H38: 164 | I38: 2062 | J38: 503 | K38: 1105
C39: I31 | D39: Profit/(loss) on sale of investments | E39: 0 | F39: 0 | G39: 0 | H39: -24 | I39: 1 | J39: =-2-459 -> -461 | K39: =236-35 -> 201
C40: I32 | D40: Impairment of investments | E40: ='Publish IS (R)'!H30 -> 7 | F40: 50 | G40: -142 | H40: 0 | I40: -112 | J40: =-95-1 -> -96 | K40: 0
C41: I33 | D41: Net gain/(loss) on financial instruments | E41: ='Publish IS (R)'!H31 -> 170 | F41: 41 | G41: 414 | H41: 38 | I41: -101 | J41: 33 | K41: 111
C42: I34 | D42: ? | E42: 0 | F42: 0 | G42: 0 | H42: 0 | I42: 0 | J42: 0 | K42: 0
C43: I35 | D43: ? | E43: 0 | F43: 0 | G43: 0 | H43: 0 | I43: 0 | J43: 0 | K43: 0
C44: I36 | D44: ? | E44: 0 | F44: 0 | G44: 0 | H44: 0 | I44: 0 | J44: 0 | K44: 0
C45: I37 | D45: Other items | E45: 0 | F45: 0 | G45: 0 | H45: 0 | I45: 0 | J45: 0 | K45: 0
A46: I38 = I30 + I31 + I32 + I33 + I34 + I35 + I36 + I37 | C46: I38 | D46: Profit before exceptionsal items, interest, associate income and tax | E46: =+E38+E39+E40+E41+E42+E43+E44+E45 ->  | F46: =+F38+F39+F40+F41+F42+F43+F44+F45 -> 1984 | G46: 316 | H46: 178 | I46: 1850 | J46: -21 | K46: 1417
A47: I40 = I38 + I39 | C47: I40 | D47: Profit before interest, associate income and tax | E47: =+E46 ->  | F47: =+F46 -> 1984 | G47: 316 | H47: 178 | I47: 1850 | J47: -21 | K47: 1417
C48: I13 | D48: Interest received | E48: =+'Publish IS (R)'!H33 -> 220 | F48: 38 | G48: 140 | H48: 187 | I48: 443 | J48: 282 | K48: 188
C49: I10 | D49: Interest paid | E49: =-'Publish IS (R)'!H34 -> 277 | F49: 156 | G49: 288 | H49: 246 | I49: 212 | J49: 514 | K49: 454
A50: I42 = I13 + I10 | C50: I42 | D50: Net interest paid/(reveived) | E50: =+E49-E48 -> 57 | F50: =+F49-F48 -> 118 | G50: 148 | H50: 59 | I50: -231 | J50: 232 | K50: 266
C51: I43 | D51: Profit/(loss) from Associates | E51: =-'Publish IS (R)'!H29 -> 108 | F51: 0 | G51: -51 | H51: 56 | I51: 12 | J51: -78 | K51: -19
A52: I44 = I40 - I42 + I43 | C52: I44 | D52: Pre-tax profit | E52: =+E47-E50+E51 ->  | F52: =+F47-F50+F51 -> 1866 | G52: 117 | H52: 175 | I52: 2093 | J52: -331 | K52: 1132
C53: I46 | D53: Taxation | E53: =-'Publish IS (R)'!H38 -> -281 | F53: 342 | G53: -480 | H53: 335 | I53: 188 | J53: 465 | K53: 277
A54: I48 = I44 - I46 | C54: I48 | D54: Profit for the period from continued operations | E54: =+E52-E53 ->  | F54: =+F52-F53 -> 1524 | G54: 597 | H54: -160 | I54: 1905 | J54: -796 | K54: 855
C55: I49 | D55: Profit/(loss) from discontinued operations | E55: =+'Publish IS (R)'!#REF! ->  | F55: 0 | G55: 20 | H55: -32 | I55: 1022 | J55: 551 | K55: -473
C56: I50 | D56: Income from associates after tax | E56: 0 | F56: 0 | G56: 0 | H56: 0 | I56: 0 | J56: 0 | K56: 0
C57: I52 | D57: Income attributable to minority interest | E57: 0 | F57: 0 | G57: 0 | H57: 0 | I57: 0 | J57: 0 | K57: 0
C58: I54 | D58: Preference dividends | E58: 0 | F58: 0 | G58: 0 | H58: 0 | I58: 0 | J58: 0 | K58: 0
A59: I56 = I48 +I49 + I50 + I52 + I54 | C59: I56 | D59: Net profit for the period | E59: =+E54+E56+E57+E58+E55 ->  | F59: =+F54+F56+F57+F58+F55 -> 1524 | G59: 617 | H59: -192 | I59: 2927 | J59: -245 | K59: 382
C60: I58 | D60: Extraordinary Loss/(Profit) | E60: 0 | F60: 0 | G60: 0 | H60: 0 | I60: 0 | J60: 0 | K60: 0
A61: I60 = I56 + I58 | C61: I60 | D61: Income attributable to equity holders | E61: =+E59+E60 ->  | F61: =+F59+F60 -> 1524 | G61: 617 | H61: -192 | I61: 2927 | J61: -245 | K61: 382
C62: I62 | D62: ? | E62: 0 | F62: 0 | G62: 0 | H62: 0 | I62: 0 | J62: 0 | K62: 0
C63: I64 | D63: ? | E63: 0 | F63: 0 | G63: 0 | H63: 0 | I63: 0 | J63: 0 | K63: 0
C64: I66 | D64: Distrubution to share holders | E64: =-'Publish CIE (R)'!E13 -> -1 | F64: 258 | G64: 214 | H64: 213 | I64: 0 | J64: 0 | K64: 0
A65: I67 = I60 - I62 - I64 - I66 | C65: I67 | D65: Profit before capex | E65: =+E61-E62-E63-E64 ->  | F65: =+F61-F62-F63-F64 -> 1266 | G65: 403 | H65: -405 | I65: 2927 | J65: -245 | K65: 382
C66: I68 | D66: Capex | E66: 0 | F66: 0 | G66: 0 | H66: 0 | I66: 0 | J66: 0 | K66: 0
A67: I69 = I67 - I68 | C67: I69 | D67: Profit after capex | E67: =+E65-E66 ->  | F67: =+F65-F66 -> 1266 | G67: 403 | H67: -405 | I67: 2927 | J67: -245 | K67: 382
C68: I73 | D68: Headline earnings (continuing operations) | E68: =+'Publish - Notes to result '!M87 -> 129 | F68: 1452 | G68: 957 | H68: 4 | I68: 1260 | J68: 74 | K68: 419
C70: B01 | D70: Ordinary share capital and premium | E70: =+'Publish BS (R)'!C52 -> 28325 | F70: 28326 | G70: 28305 | H70: 28261 | I70: 28091 | J70: 25895 | K70: 25636
C71: B02 | D71: Treasury shares | E71: 0 | F71: 0 | G71: 0 | H71: 0 | I71: 0 | J71: 0 | K71: 0
C72: B03 | D72: Distributable reserves | E72: =+'Publish BS (R)'!C54 -> -1088 | F72: 2359 | G72: 1093 | H72: 690 | I72: 1095 | J72: -1832 | K72: -1581
C73: B05 | D73: Non-distributable reserves | E73: =+'Publish BS (R)'!C53 -> 3787 | F73: 1945 | G73: 762 | H73: =258 -> 258 | I73: =339 -> 339 | J73: =676 -> 676 | K73: =-349 -> -349
C74: B06 | D74: Translation reserves | E74: 0 | F74: 0 | G74: 0 | H74: 0 | I74: 0 | J74: 0 | K74: 0
C75: B08 | D75: Other capital | E75: 0 | F75: 0 | G75: 0 | H75: 0 | I75: 0 | J75: 0 | K75: 0
A76: B09 = B01 + B02 + B03 + B04 + B05 + B06 + B07 + B08 | C76: B09 | D76: Ordinary shareholders interest | E76: =SUM(E70:E75) -> 31024 | F76: =SUM(F70:F75) -> 32630 | G76: 30160 | H76: 29209 | I76: 29525 | J76: 24739 | K76: 23706
C77: B11 | D77: Preference shareholders | E77: 0 | F77: 0 | G77: 0 | H77: 0 | I77: 0 | J77: 0 | K77: 0
C78: B12 | D78: Debentures | E78: 0 | F78: 0 | G78: 0 | H78: 0 | I78: 0 | J78: 0 | K78: 0
C79: B13 | D79: Minority interest | E79: 0 | F79: 0 | G79: 0 | H79: 0 | I79: 0 | J79: 0 | K79: 0
A80: B15 = B09 + B11 + B12 + B13 + B14 | C80: B15 | D80: Total shareholders interest | E80: =SUM(E76:E79) -> 31024 | F80: =SUM(F76:F79) -> 32630 | G80: 30160 | H80: 29209 | I80: 29525 | J80: 24739 | K80: 23706
C81: B17 | D81: Near equities | E81: 0 | F81: 0 | G81: 0 | H81: 0 | I81: 0 | J81: 0 | K81: 0
C82: B19 | D82: Non-interest bearing loans | E82: 0 | F82: 0 | G82: 0 | H82: 0 | I82: 0 | J82: 0 | K82: 0
C83: B21 | D83: Interest bearing loans | E83: =+'Publish BS (R)'!C68 -> 0 | F83: 991 | G83: 1229 | H83: 981 | I83: 110 | J83: 242 | K83: 1743
C84: B23 | D84: Other long-term liabilities | E84: =+'Publish BS (R)'!C64+'Publish BS (R)'!C65 -> 2399 | F84: 2269 | G84: =1971+174 -> 2145 | H84: =1692+169 -> 1861 | I84: 1696 | J84: 1273 | K84: =1092+124 -> 1216
A85: B27 = B17 + B19 + B21 + B23 | C85: B27 | D85: Long-term liabilities | E85: =SUM(E81:E84) -> 2399 | F85: =SUM(F81:F84) -> 3260 | G85: 3374 | H85: 2842 | I85: 1806 | J85: 1515 | K85: 2959
C86: B29 | D86: Deferred tax liabilities | E86: =+'Publish BS (R)'!C63 -> 2640 | F86: 4452 | G86: 5613 | H86: 5409 | I86: 4963 | J86: 4475 | K86: 4240
C87: B31 | D87: Other capital | E87: 0 | F87: 0 | G87: 0 | H87: 0 | I87: 0 | J87: 0 | K87: 0
A88: B33 = B27 + B29 + B31 | C88: B33 | D88: Total capital employeed | E88: =+E80+E85+E86+E87 -> 36063 | F88: =+F80+F85+F86+F87 -> 40342 | G88: 39147 | H88: 37460 | I88: 36294 | J88: 30729 | K88: 30905
C90: B37 | D90: Mining assets | E90: =+'Publish BS (R)'!C14 -> 33232 | F90: 32830 | G90: 31221 | H90: 29556 | I90: 27912 | J90: 27556 | K90: 24538
C91: B39 | D91: Investments in associates | E91: 0 | F91: 0 | G91: 0 | H91: 385 | I91: 329 | J91: 145 | K91: 7
C92: B41 | D92: Investments and loans | E92: =+'Publish BS (R)'!C17+'Publish BS (R)'!C23+'Publish BS (R)'!C16 -> 2371 | F92: 2143 | G92: =31+1883+185 -> 2099 | H92: 1900 | I92: 1858 | J92: 1610 | K92: 1433
C93: B43 | D93: Goodwill | E93: 0 | F93: 0 | G93: 0 | H93: 0 | I93: 0 | J93: 0 | K93: 0
C94: B45 | D94: Intangible assets | E94: =+'Publish BS (R)'!C15 -> 885 | F94: 2185 | G94: 2170 | H94: 2210 | I94: 2224 | J94: 2209 | K94: 2307
C95: B46 | D95: Deferred tax assets | E95: =+'Publish BS (R)'!C18 -> 76 | F95: 1179 | G95: 2546 | H95: 1875 | I95: 1712 | J95: 1485 | K95: 1521
C96: B47 | D96: Other assets | E96: =+'Publish BS (R)'!C24+'Publish BS (R)'!C25 -> 50 | F96: 197 | G96: =172+23 -> 195 | H96: 289 | I96: 75 | J96: 137 | K96: 54
C97: B51 | D97: Stores | E97: =+'Publish BS (R)'!C34 -> 1390 | F97: 990 | G97: 837 | H97: 987 | I97: 1035 | J97: 693 | K97: 742
C98: B52 | D98: Minerals on hand/in transit | E98: 0 | F98: 0 | G98: 0 | H98: 0 | I98: 0 | J98: 0 | K98: 0
C99: B53 | D99: Debtors and pmts in advance | E99: =+'Publish BS (R)'!C35 -> 693 | F99: 1131 | G99: 1073 | H99: 932 | I99: 885 | J99: 875 | K99: 918
C100: B55 | D100: Cash | E100: =+'Publish BS (R)'!C38 -> 2281 | F100: 1205 | G100: 693 | H100: 770 | I100: 1950 | J100: 413 | K100: 985
C101: B59 | D101: Other current assets | E101: =SUM(E102:E106) ->  | F101: =SUM(F102:F106) -> 509 | G101: 407 | H101: 319 | I101: 45 | J101: 1619 | K101: 3834
E102: 0 | F102: 0 | G102: 0 | H102: 0 | I102: 0 | J102: 0 | K102: 0
D103: - Assets held for sale | E103: =+'Publish BS (R)'!#REF! ->  | F103: 315 | G103: 268 | H103: 245 | I103: 0 | J103: 1537 | K103: 1284
D104: - Income and mining taxes | E104: =+'Publish BS (R)'!C36 -> 94 | F104: 194 | G104: 139 | H104: 74 | I104: 45 | J104: 82 | K104: 66
D105: - Investments in financial assets | E105: 0 | F105: 0 | G105: 0 | H105: 0 | I105: 0 | J105: 0 | K105: 2484
A107: B61 = B51 + B52 + B53 + B55 + B59 | C107: B61 | D107: Current assets | E107: =SUM(E97:E101) ->  | F107: =SUM(F97:F101) -> 3835 | G107: 3010 | H107: 3008 | I107: 3915 | J107: 3600 | K107: 6479
A108: B63 = B37 + B39 + B41 + B43 + B45 + B46 + B47 + B61 | C108: B63 | D108: Total assets | E108: =SUM(E90:E101) ->  | F108: =SUM(F90:F101) -> 42369 | G108: 41241 | H108: 39223 | I108: 38025 | J108: 36742 | K108: 36339
C110: B65 | D110: Creditors and provisions | E110: =+'Publish BS (R)'!C79+'Publish BS (R)'!C78 -> 1932 | F110: 1687 | G110: 1748 | H110: 1419 | I110: 1479 | J110: 1659 | K110: 1812
C111: B69 | D111: Dividends | E111: 0 | F111: 0 | G111: 0 | H111: 0 | I111: 0 | J111: 0 | K111: 0
C112: B71 | D112: Tax | E112: 0 | F112: 0 | G112: 0 | H112: 0 | I112: 0 | J112: 0 | K112: 0
C113: B73 | D113: Bank overdraft / short term loans | E113: =+'Publish BS (R)'!C77 -> 3052 | F113: 323 | G113: 330 | H113: 209 | I113: 252 | J113: 3857 | K113: =2855+220 -> 3075
C114: B77 | D114: Other current liabilities | E114: =+'Publish BS (R)'!C84 -> 0 | F114: 17 | G114: 16 | H114: 135 | I114: 0 | J114: 497 | K114: 547
A115: B79 = B65 + B69 + B71 + B73 + B77 | C115: B79 | D115: Current liabilities | E115: =SUM(E110:E114) -> 4984 | F115: =SUM(F110:F114) -> 2027 | G115: 2094 | H115: 1763 | I115: 1731 | J115: 6013 | K115: 5434
A116: B81 = B61 - B79 | C116: B81 | D116: Net current assets | E116: =+E107-E115 ->  | F116: =+F107-F115 -> 1808 | G116: 916 | H116: 1245 | I116: 2184 | J116: -2413 | K116: 1045
A117: B83 = B33 - B63 + B79 | C117: B83 | D117: Employment of capital | E117: =+E88-E108+E115 ->  | F117: =+F88-F108+F115 -> 0 | G117: 0 | H117: 0 | I117: 0 | J117: 0 | K117: 0
C120: D02 | D120: Number of shares in issue | E120: =+#REF! ->  | F120: 431312677 | G120: 430084628 | H120: 428654779 | I120: 425986836 | J120: 403253756 | K120: 399608384
C121: D03 | D121: Treasury shares | E121: 0 | F121: 0 | G121: 0 | H121: 0 | I121: 0 | J121: 0 | K121: 0
C122: D04 | D122: Weighted average number of shares | E122: =+#REF! ->  | F122: 430249780.1 | G122: 430000000 | H122: 426400000 | I122: 414100000 | J122: 400800000 | K122: 397911000
C123: D07 | D123: Fully diluted weighted average shares | E123: =+#REF! ->  | F123: 431901283.5 | G123: 431400000 | H123: 427800000 | I123: 416000000 | J123: 402900000 | K123: 402382000
A124: D06 = D02 * S20 / 100000 | C124: D06 | D124: JSE Market Capitalisation (R'000) | E124: =(+E120*E147)/100000 ->  | F124: =(+F120*F147)/100000 -> 40974704.31 | G124: 38686112 | H124: =+H120*H147/100000 -> 34892499.01 | I124: =+I120*I147/100000 -> 34078946.88 | J124: =+J120*J147/100000 -> 38309106.82 | K124: =+K120*K147/100000 -> 40068732.66
C125: D10 | D125: Number of months | E125: 6 | F125: 6 | G125: 12 | H125: 12 | I125: 12 | J125: 12 | K125: 12
C126: D11 | D126: Employees | E126: 39440 | F126: 39440 | G126: 39440 | H126: 42597 | I126: 45685 | J126: 47000 | K126: 47000
A129: S02 = (I56 * 1000000 / D04) * 100 | C129: S02 | D129: Earnings per share (ZARc) | E129: =ROUND(+E59*1000000/E122*100,0) ->  | F129: =ROUND(+F59*1000000/F122*100,0) -> 354 | G129: =ROUNDUP(+G59*1000000/G122*100,0) -> 144 | H129: =ROUNDUP(+H59*1000000/H122*100,0) -> -46 | I129: =+I59*1000000/I122*100 -> 706.834098 | J129: =ROUNDUP(+J59*1000000/J122*100,0) -> -62 | K129: =+K59*1000000/K122*100 -> 96.00136714
A130: S05 = (I56 * 1000000 / D07) * 100 | C130: S05 | D130: Diluted earnings per share (ZARc) | E130: =ROUNDUP(+E59*1000000/E123*100,0) ->  | F130: =ROUNDUP(+F59*1000000/F123*100,0) -> 353 | G130: =ROUNDUP(+G59*1000000/G123*100,0) -> 144 | H130: =ROUNDUP(+H59*1000000/H123*100,0)-1 -> -46 | I130: =+I59*1000000/I123*100 -> 703.6057692 | J130: =ROUNDUP(+J59*1000000/J123*100,0)-1 -> -62 | K130: =+K59*1000000/K123*100-2 -> 92.93466408
A131: S03 = (I73 * 1000000 / D04) * 100 | C131: S03 | D131: Headline earnings per share (ZARc) | E131: =+E68*1000000/E122*100 ->  | F131: =+F68*1000000/F122*100 -> 337.4783828 | G131: 222.5581395 | H131: 0.9380863039 | I131: 304.2743299 | J131: 18.46307385 | K131: 105.2999289
A132: S07 = (I73 * 1000000 / D07) * 100 | C132: S07 | D132: Diluted headline earnings per share (ZARc) | E132: =+E68*1000000/E123*100 ->  | F132: =+F68*1000000/F123*100 -> 336.1879336 | G132: 221.8358832 | H132: 0.9350163628 | I132: 302.8846154 | J132: 18.36684041 | K132: 104.1299064
A133: S04 = (I66 * 1000000 / D02) * 100 | C133: S04 | D133: Distributions per share (ZARc) | E133: =ROUND(+E64*1000000/E120*100,0) ->  | F133: =ROUND(+F64*1000000/F120*100,0) -> 60 | G133: =ROUND(+G64*1000000/G120*100,0) -> 50 | H133: =ROUND(+H64*1000000/H120*100,0) -> 50 | I133: =+I64*1000000/I120*100 -> 0 | J133: =+J64*1000000/J120*100 -> 0 | K133: =+K64*1000000/K120*100 -> 0
A134: S06 = (B09 * 1000000 / D02) * 100 | C134: S06 | D134: Net asset value per share (ZARc) | E134: =+E76*1000000/E120*100 ->  | F134: =+F76*1000000/F120*100 -> 7565.27729 | G134: 7012.573349 | H134: 6814.108096 | I134: 6930.96535 | J134: 6134.846764 | K134: 5932.307967
C135: S09 | D135: 3 Year beta | E135: -0.13 | F135: -0.13 | G135: -0.2 | H135: 0.09 | I135: 0.32 | J135: 1.98 | K135: 2.77
A136: S12 = (C07 * 1000000 / D02) * 100 | C136: S12 | D136: Cash generated per share | E136: =+E164*1000000/E120*100 ->  | F136: =+F164*1000000/F120*100 -> 570.3518888 | G136: 553.1469495 | H136: 369.2948446 | I136: 536.6363011 | J136: 430.9941257 | K136: 296.7905698
C145: S18 | D145: Net asset value per share (base currency) | E145: =+E134 ->  | F145: =+F134 -> 7565.27729 | G145: 7012.573349 | H145: 6814.108096 | I145: 6930.96535 | J145: 6134.846764 | K145: 5932.307967
C146: S025 | D146: Price at period end | E146: =+E147 -> 9500 | F146: =+F147 -> 9500 | G146: 8995 | H146: =+H147 -> 8140 | I146: =+I147 -> 8000 | J146: =+J147 -> 9500 | K146: =+K147 -> 10027
C147: S20 | D147: JSE market price at period end (ZARc) | E147: 9500 | F147: 9500 | G147: 8995 | H147: 8140 | I147: 8000 | J147: 9500 | K147: 10027
C148: S21 | D148: JSE market price high (ZARc) | E148: 11609 | F148: 11609 | G148: 10325 | H148: 8751 | I148: 12950 | J148: 11850 | K148: 12300
C149: S22 | D149: JSE market price low (ZARc) | E149: 8547 | F149: 8547 | G149: 7050 | H149: 6865 | I149: 5499 | J149: 6175 | K149: 8610
C150: S23 | D150: JSE volume traded | E150: 149560102 | F150: 149560102 | G150: 306869110 | H150: 435070882 | I150: 528328503 | J150: 367285632 | K150: 323183737
C151: S24 | D151: JSE value traded | E151: 14814108960 | F151: 14814108960 | G151: 25913118555 | H151: 33435131162 | I151: 48142117544 | J151: 30952045568 | K151: 33549096588
C152: S41 | D152: 12 Month HEPS (Continuing operations) | E152: 459 | F152: 459 | G152: =ROUND(+G131,0) -> 223 | H152: =ROUND(+H131,0) -> 1 | I152: =ROUND(+I131,0) -> 304 | J152: =ROUND(+J131,0) -> 18 | K152: =ROUND(+K131,0) -> 105
C153: S42 | D153: 12 Month dividend | E153: 100 | F153: 100 | G153: 50 | H153: 50 | I153: 0 | J153: 0 | K153: 0
C154: S37 | D154: Dividend per share | E154: 100 | F154: 100 | G154: 50 | H154: 50 | I154: 0 | J154: 0 | K154: 0
C157: R50 | D157: Working revenue per share | E157: =+E11*1000000/E122*100*(12/E125) ->  | F157: =+F11*1000000/F122*100*(12/F125) -> 4066.939905 | G157: 2894.186047 | H157: 2646.341463 | I157: 2776.141029 | J157: 2297.904192 | K157: 2019.798397
C158: R51 | D158: Price/Sales per share | E158: =+E146/E157 ->  | F158: =+F146/F157 -> 2.335908625 | G158: 3.107955002 | H158: 3.0759447 | I158: 2.881697982 | J158: 4.134201954 | K158: 4.964356846
C159: R52 | D159: Price/Net asset value | E159: =+E146/E145 ->  | F159: =+F146/F145 -> 1.255737184 | G159: 1.282696031 | H159: 1.194580404 | I159: 1.154240369 | J159: 1.548530936 | K159: 1.690235918
C160: R53 | D160: Price/Cash flow | E160: =+(E146/E136)*(12/E125) ->  | F160: =+(F146/F136)*(12/F125) -> 33.31276774 | G160: 16.26150159 | H160: 22.04200822 | I160: 14.9076758 | J160: 22.04206376 | K160: 33.78476616
C164: C07 | D164: Net cash flow from operating activities | E164: =ROUND(+#REF!,0) ->  | F164: 2460 | G164: 2379 | H164: 1583 | I164: 2286 | J164: 1738 | K164: 1186
C165: C15 | D165: Net cash flow from investing activities | E165: =ROUND(+#REF!,0) ->  | F165: -1444 | G165: -2654 | H165: -3416 | I165: 817 | J165: -2373 | K165: -2228
C166: C40 | D166: Net cash flow from financing activities | E166: =ROUND(+#REF!,0) ->  | F166: -509 | G166: 209 | H166: 650 | I166: -1785 | J166: 495 | K166: 933
A169: R01 = ((I60 + I52) / B33) * 100 * (12 / D10) | C169: R01 | D169: Return on capital employed | E169: =+((E61+E57)/E88)*100*(12/E125) ->  | F169: =+((F61+F57)/F88)*100*(12/F125) -> 7.555401319 | G169: 1.576110558 | H169: -0.5125467165 | I169: 8.064693889 | J169: -0.7972924599 | K169: 1.236045947
A170: R02 = ((I60 + I52) / B15) * 100 * (12 / D10) | C170: R02 | D170: Return on shareholder funds | E170: =+((E61+E57)/E80)*100*(12/E125) ->  | F170: =+((F61+F57)/F80)*100*(12/F125) -> 9.34109715 | G170: 2.045755968 | H170: -0.6573316444 | I170: 9.913632515 | J170: -0.9903391406 | K170: 1.611406395
A171: R03 = (I44 + I50) / (B63 - B45 - B43) * 100 * (12 / D10) | C171: R03 | D171: Return on total assets | E171: =+(E52+E56)/(E108-E94-E93)*100*(12/E125) ->  | F171: =+(F52+F56)/(F108-F94-F93)*100*(12/F125) -> 9.287278519 | G171: 0.2994548386 | H171: 0.4728068516 | I171: 5.846205413 | J171: -0.9585034605 | K171: 3.326281147
A172: R04 = (I30 / I01) * 100 | C172: R04 | D172: Operating profit margin | E172: =+(E38/E11)*100 ->  | F172: =+(F38/F11)*100 -> 21.63675849 | G172: 0.3535556448 | H172: 1.453385324 | I172: 17.93667363 | J172: 5.46145494 | K172: 13.74891129
A173: R05 = (I60 / I01) * 100 | C173: R05 | D173: Net profit margin | E173: =+(E61/E11)*100 ->  | F173: =+(F61/F11)*100 -> 17.41913362 | G173: 4.957814383 | H173: -1.701524282 | I173: 25.46102992 | J173: -2.660152009 | K173: 4.753017295
A174: R06 = (B27 - B19 + B73) / B15 | C174: R06 | D174: Debt:Equity | E174: =+(E85-E82+E113)/E80 -> 0.1757026818 | F174: =+(F85-F82+F113)/F80 -> 0.1098069261 | G174: 0.1228116711 | H174: 0.1044541066 | I174: 0.06970364098 | J174: 0.2171470148 | K174: 0.2545347169
A175: R07 = I40 / I42 | C175: R07 | D175: Interest cover | E175: =+E47/E50 ->  | F175: =+F47/F50 -> 16.81355932 | G175: 2.135135135 | H175: 3.016949153 | I175: -8.008658009 | J175: -0.09051724138 | K175: 5.327067669
A176: R09 = B61 / B79 | C176: R09 | D176: Current ratio | E176: =+E107/E115 ->  | F176: =+F107/F115 -> 1.891958559 | G176: 1.437440306 | H176: 1.706182643 | I176: 2.26169844 | J176: 0.5987028106 | K176: 1.192307692
A177: R10 = S02 / S04 | C177: R10 | D177: Dividend cover | E177: =+E129/E133 ->  | F177: =+F129/F133 -> 5.9 | G177: 2.88 | H177: -0.92
C178: R13 | D178: Yield (g/ton) | E178: 2.22 | F178: 2.22 | G178: 2.07 | H178: 2.39 | I178: 2.54 | J178: 2.68 | K178: 3.67
C179: R14 | D179: Tons milled ('000) | E179: =4542+4870 -> 9412 | F179: =4542+4870 -> 9412 | G179: 19280 | H179: 17963 | I179: 17888 | J179: 17686 | K179: 14781
C180: R15 | D180: Output (kg) | E180: =10207+10718 -> 20925 | F180: =10207+10718 -> 20925 | G180: 40535 | H180: 44433 | I180: 45437 | J180: 47419 | K180: 54291
C181: R16 | D181: Price received (R/kg) | E181: 418381 | F181: 418381 | G181: 307875 | H181: 266009 | I181: 250826 | J181: 190951 | K181: 147927
C182: R17 | D182: Working cost (R/kg) | E182: 257114 | F182: 257114 | G182: 226667 | H182: 195162 | I182: 168661 | J182: 140093 | K182: 112062
A183: R18 = (S06 / S20) * 100 | C183: R18 | D183: NAV%Price | E183: =+E134/E147*100 ->  | F183: =+F134/F147*100 -> 79.63449778 | G183: 77.9607932 | H183: 83.71140167 | I183: 86.63706688 | J183: 64.57733436 | K183: 59.16333865
A184: R19 = S20 / S41 | C184: R19 | D184: Price : Earnings | E184: =+E147/E152 -> 20.69716776 | F184: =+F147/F152 -> 20.69716776 | G184: 40.33632287 | H184: 8140 | I184: 26.31578947 | J184: 527.7777778 | K184: 95.4952381
A185: R36 = (I38 * 12 / D10) / B63 * 100 | C185: R36 | D185: Profitability % | E185: =+(E46*12/E125)/E108*100 ->  | F185: =+(F46*12/F125)/F108*100 -> 9.365337865 | G185: 0.766227783 | H185: 0.4538153634 | I185: 4.86522025 | J185: -0.05715529911 | K185: 3.899391838
A186: R37 = (B63 / (B12 + B27 + B29 + B79)) * 100 | C186: R37 | D186: Solvency % | E186: =+(E108/(E78+E85+E86+E115))*100 ->  | F186: =+(F108/(F78+F85+F86+F115))*100 -> 435.0446658 | G186: 372.1776013 | H186: 391.6816457 | I186: 447.3529412 | J186: 306.1068066 | K186: 287.6513892
A187: R38 = (B012+B027-B017-B019-B023+B073)/B063 | C187: R38 | D187: Int Bearing Debt : Total assets | E187: =+(E78+E85-E81-E82-E84+E113)/E108 ->  | F187: =+(F78+F85-F81-F82-F84+F113)/F108 -> 0.03101324081 | G187: 0.03780218714 | H187: 0.03033934171 | I187: 0.009520052597 | J187: 0.1115617005 | K187: 0.1325848262
A188: R39 = (C07 * 12 / D10) / (B12 + B27 + B29 + B79) * 100 | C188: R39 | D188: Liquidity % | E188: =+(E164*12/E125)/(E78+E81+E86+E115)*100 ->  | F188: =+(F164*12/F125)/(F78+F81+F86+F115)*100 -> 75.9376447 | G188: 30.86804204 | H188: 22.07194646 | I188: 34.14998506 | J188: 16.5713196 | K188: 12.25966508
A189: R40 = (C07 / (I56 - I39)) * 12 / D10 | C189: R40 | D189: Cash flow : Attributable profit | E189: =+(E164/(E59))*12/E125 ->  | F189: =+(F164/(F59))*12/F125 -> 3.228346457 | G189: 3.855753647 | H189: -8.244791667 | I189: 0.7810044414 | J189: -7.093877551 | K189: 3.104712042

Sheet Publish IS (R)
A1: CONDENSED CONSOLIDATED INCOME STATEMENTS (Rand)
C2: 30 | D2: 30 | E2: 30 | H2: 30 | I2: 30
C3: Quarter ended | H3: Nine months ended | K3: Year ended
C4: 30 September | D4: 30 June | E4: 30 September | F4: 30 June | G4: 31 March | H4: 30 June | I4: 31 March | J4: 0 | K4: 30 June
C5: 2014 | D5: 2014 | E5: 2013 | H5: 2014 | I5: 2013 | K5: 2014
A6: Figures in million | B6: Note | C6: (Unaudited) | D6: (Unaudited) | E6: (Unaudited) | H6: (Unaudited) | I6: (Unaudited) | K6: (Audited)
I7: (Restated)*
A10: Revenue | C10: 4431 | D10: 3763 | E10: 4018 | H10: 15682 | I10: 12419 | K10: 15682
A11: Cost of sales | B11: 2 | C11: -4319 | D11: -4941 | E11: -3735 | H11: -16088 | I11: -10296 | K11: -16088
A14: Production costs | C14: -3518 | D14: -2916 | E14: -2981 | H14: -11890 | I14: -8509 | K14: -11888
A15: Amortisation and depreciation | C15: -650 | D15: -526 | E15: -577 | H15: -2143 | I15: -1489 | K15: -2143
A16: Impairment of assets | C16: 0 | D16: -1410 | E16: 0 | H16: -1439 | I16: 0 | K16: -1439
A17: Other items | C17: -151 | D17: -89 | E17: -177 | H17: -616 | I17: -298 | K17: -618
A18: Employment termination and restructuring costs | C18: -48 | D18: -40 | E18: -94 | H18: -274 | I18: -7 | K18: -274
A20: Gross profit/(loss) | C20: 112 | D20: -1178 | E20: 283 | H20: -406 | I20: 2123 | K20: -406
A21: Corporate, administration and other expenditure | C21: -111 | D21: -112 | E21: -108 | H21: -431 | I21: -338 | K21: -430
A22: Social investment expenditure | C22: -24 | D22: -21 | E22: -38 | H22: -88 | I22: -70 | K22: -88
A23: Exploration expenditure | C23: -85 | D23: -114 | E23: -142 | H23: -458 | I23: -454 | K23: -458
A24: Profit on sale of property, plant and equipment | C24: 0 | D24: 30 | E24: 0 | H24: 30 | I24: 139 | K24: 30
A25: Other (expenses)/income - net | B25: 5 | C25: -187 | D25: -47 | E25: 1 | H25: -205 | I25: -182 | K25: -208
A28: Operating loss | C28: -295 | D28: -1442 | E28: -4 | H28: -1558 | I28: 1218 | K28: -1560
A29: (Loss)/profit from associates | B29: 4 | C29: 0 | D29: -125 | E29: 3 | H29: -108 | I29: 0 | K29: -109
A30: Profit on disposal/(impairment) of investments | C30: 0 | D30: 14 | E30: -7 | H30: 7 | I30: -88 | K30: 7
A31: Net gain on financial instruments | C31: 7 | D31: 32 | E31: 74 | H31: 170 | I31: 181 | K31: 170
A32: Gain on farm-in option | C32: 0 | D32: 0 | E32: 0 | H32: 0 | I32: 0 | K32: 0
A33: Investment income | C33: 51 | D33: 61 | E33: 45 | H33: 220 | I33: 118 | K33: 220
A34: Finance cost | C34: -65 | D34: -101 | E34: -60 | H34: -277 | I34: -198 | K34: -277
A37: (Loss)/profit before taxation | C37: -302 | D37: -1561 | E37: 51 | H37: -1546 | I37: 1231 | K37: -1549
A38: Taxation | C38: 36 | D38: 338 | E38: -38 | H38: 281 | I38: -416 | K38: 279
A41: Normal taxation | C41: 1 | D41: 1 | E41: -49 | H41: -23 | I41: -349 | K41: -24
A42: Deferred taxation | C42: 35 | D42: 337 | E42: 11 | H42: 304 | I42: -67 | K42: 303
A45: Net (loss)/profit for the period | C45: -266 | D45: -1223 | E45: 13 | K45: -1270
A48: Attributable to:
A49: Owners of the parent | C49: -266 | D49: -1223 | E49: 13 | K49: -1270
A52: (Loss)/earnings per ordinary share (cents) | B52: 3
A54: Basic (loss)/earnings | C54: -61 | D54: -282 | E54: 3 | H54: -293 | K54: -293
A55: Diluted (loss)/earnings | C55: -61 | D55: -282 | E55: 3 | K55: -293
A59: The accompanying notes are an integral part of these condensed consolidated financial statements.
J340: 245
J341: 491
K346: 537

Sheet Publish Com IS (R)
A1: CONDENSED CONSOLIDATED STATEMENTS OF COMPREHENSIVE INCOME (Rand)
C4: Quarter ended | G4: Year ended
C5: 30 September | D5: 30 June | E5: 30 September | G5: 30 June
C6: 2014 | D6: 2014 | E6: 2013 | G6: 2014
A7: Figures in million | C7: (Unaudited) | D7: (Unaudited) | E7: (Unaudited) | G7: (Audited)
A11: Net (loss)/profit for the period | C11: -266 | D11: -1223 | E11: 13 | G11: -1270
A12: Other comprehensive income/(loss) for the period, net of income tax | C12: 179 | D12: 624 | E12: -695 | F12: 0 | G12: -140
A15: Items that may be reclassified subsequently to profit or loss: | C15: 179 | D15: 655 | E15: -695 | F15: 0 | G15: -109
A16: Foreign exchange translation | C16: 179 | D16: 668 | E16: -694 | G16: -108
A17: Movements on investments | C17: 0 | D17: -13 | E17: -1 | G17: -1
A19: Items that will not be reclassified to profit or loss: | C19: 0 | D19: -31 | E19: 0 | G19: -31
A20: Actuarial loss recognised during the year | C20: 0 | D20: -38 | E20: 0 | G20: -38
A21: Deferred taxation thereon | C21: 0 | D21: 7 | E21: 0 | G21: 7
A24: Total comprehensive loss for the period | C24: -87 | D24: -599 | E24: -682 | G24: -1410
A27: Attributable to:
A28: Owners of the parent | C28: -87 | D28: -599 | E28: -682 | G28: -1410
A31: The accompanying notes are an integral part of these condensed consolidated financial statements.
A63: The unaudited condensed consolidated financial statements for the three months ended 30 September 2014 have been prepared by Harmony Gold Mining Company Limited’s corporate reporting team headed by Mr Herman Perry. This process was supervised by the financial director, Mr Frank Abbott and approved by the board of Harmony Gold Mining Company Limited. These financial statements have not been audited or independently reviewed.
C92: Total diluted earnings

Sheet Publish CIE (R)
A1: CONDENSED CONSOLIDATED STATEMENTS OF CHANGES IN EQUITY (Rand)
A2: for the three months ended 30 September 2014 (Unaudited)
A5: Figures in million | C5: Share capital | D5: Other reserves | E5: (Accumulated loss)/retained earnings | F5: Total
A8: Balance - 30 June 2014 | C8: 28325 | D8: 3539 | E8: -822 | F8: 31042
A9: Issue of shares | C9: 0 | D9: 0 | E9: 0 | F9: 0
A10: Share-based payments | C10: 0 | D10: 69 | E10: 0 | F10: 69
A11: Net loss for the period | C11: 0 | D11: 0 | E11: -266 | F11: -266
A12: Other comprehensive income for the period | C12: 0 | D12: 179 | E12: 0 | F12: 179
A13: Dividends paid | C13: 0 | D13: 0 | E13: 1 | F13: 1
A16: Balance - 30 September 2014 | C16: 28325 | D16: 3787 | E16: -1088 | F16: 31024
A20: Balance - 30 June 2013 | C20: 28325 | D20: 3442 | E20: 448 | F20: 32215
A21: Share-based payments | C21: 0 | D21: 43 | E21: 0 | F21: 43
A22: Net profit for the period | C22: 0 | D22: 0 | E22: 13 | F22: 13
A23: Other comprehensive loss for the period | C23: 0 | D23: -695 | E23: 0 | F23: -695
A26: Balance - 30 September 2013 | C26: 28325 | D26: 2790 | E26: 461 | F26: 31576
A29: The accompanying notes are an integral part of these condensed consolidated financial statements.
B87: Total diluted earnings
K376: 245
K377: 491
L379: 537

Sheet Publish BS (R)
A1: CONDENSED CONSOLIDATED BALANCE SHEETS (Rand)
C2: 30 | D2: 30 | E2: 30
C4: At | D4: At | E4: At
C5: 30 September | D5: 30 June | E5: 30 September
C6: 2014 | D6: 2014 | E6: 2013
A7: Figures in million | B7: Note | C7: (Unaudited) | D7: (Audited) | E7: (Unaudited)
A10: ASSETS
A12: Non-current assets
A14: Property, plant and equipment | C14: 33232 | D14: 33069 | E14: 32195
A15: Intangible assets | C15: 885 | D15: 886 | E15: 2191
A16: Restricted cash | C16: 38 | D16: 42 | E16: 38
A17: Restricted investments | C17: 2329 | D17: 2299 | E17: 2143
A18: Deferred tax assets | C18: 76 | D18: 81 | E18: 93
A19: Investment in joint ventures | C19: 0 | D19: 0 | E19: 0
A20: Investment in subsidiaries | C20: 0 | D20: 0 | E20: 0
A21: Loans to subsidiaries | C21: 0 | D21: 0 | E21: 0
A22: Investments in associates | B22: 4 | C22: 0 | D22: 0 | E22: 112
A23: Investments in financial assets | C23: 4 | D23: 4 | E23: 42
A24: Inventories | C24: 50 | D24: 50 | E24: 57
A25: Trade and other receivables | C25: 0 | D25: 0 | E25: 0
E26: 0
E27: 0
A28: Total non-current assets | C28: 36614 | D28: 36431 | E28: 36871
E29: 0
E30: 0
A32: Current assets
E33: 0
A34: Inventories | C34: 1390 | D34: 1534 | E34: 1482
A35: Trade and other receivables | C35: 693 | D35: 951 | E35: 1238
A36: Income and mining taxes | C36: 94 | D36: 110 | E36: 103
A37: Restricted cash | C37: 15 | D37: 15 | E37: 0
A38: Cash and cash equivalents | C38: 2281 | D38: 1829 | E38: 2288
E39: 0
A40: Total current assets | C40: 4473 | D40: 4439 | E40: 5111
E41: 0
E42: 0
E43: 0
A44: Total assets | C44: 41087 | D44: 40870 | E44: 41982
E45: 0
A48: EQUITY AND LIABILITIES
A50: Share capital and reserves
E51: 0
A52: Share capital | C52: 28325 | D52: 28325 | E52: 28325
A53: Other reserves | C53: 3787 | D53: 3539 | E53: 2790
A54: (Accumulated loss)/retained earnings | C54: -1088 | D54: -822 | E54: 461
E55: 0
E56: 0
A57: Total equity | C57: 31024 | D57: 31042 | E57: 31576
E58: 0
E59: 0
A61: Non-current liabilities
E62: 0
A63: Deferred tax liabilities | C63: 2640 | D63: 2680 | E63: 2998
A64: Provision for environmental rehabilitation | C64: 2148 | D64: 2098 | E64: 1990
A65: Retirement benefit obligation | C65: 251 | D65: 247 | E65: 198
A66: Other non-current liabilities | B66: 6 | C66: 40 | D66: 95 | E66: 63
A67: Derivative financial liabilities
A68: Borrowings | B68: 5 | C68: 0 | D68: 2860 | E68: 2868
E69: 0
E70: 0
A71: Total non-current liabilities | C71: 5079 | D71: 7980 | E71: 8117
E72: 0
E73: 0
A75: Current liabilities
E76: 0
A77: Borrowings | B77: 5 | C77: 3052 | D77: 0 | E77: 291
A78: Income and mining taxes | C78: 9 | D78: 0 | E78: 24
A79: Trade and other payables | B79: 6 | C79: 1923 | D79: 1848 | E79: 1974
A80: Loans from subsidiaries | C80: 0 | D80: 0 | E80: 0
E81: 0
E82: 0
C83: 4984 | D83: 1848 | E83: 2289
A84: Liabilities of disposal groups classified as held for sale | C84: 0 | D84: 0 | E84: 0
E85: 0
E86: 0
A87: Total current liabilities | C87: 4984 | D87: 1848 | E87: 2289
E88: 0
E89: 0
E90: 0
A91: Total equity and liabilities | C91: 41087 | D91: 40870 | E91: 41982
A94: The accompanying notes are an integral part of these condensed consolidated financial statements.

Sheet Publish - Cash flow (R)
A1: CONDENSED CONSOLIDATED CASH FLOW STATEMENTS (Rand)
D4: Quarter ended | H4: Year ended
D5: 30 September | E5: 30 June | F5: 30 September | H5: 30 June
D6: 2014 | E6: 2014 | F6: 2013 | H6: 2014
D7: (Unaudited) | E7: (Unaudited) | F7: (Unaudited) | H7: (Audited)
A8: Figures in million | E8: Restated* | F8: Restated#
A12: Cash flow from operating activities
A13: Cash generated by operations | D13: 1071 | E13: 443 | F13: 295 | H13: 2247
A14: Interest and dividends received | D14: 25 | E14: 47 | F14: 26 | H14: 139
A15: Interest paid | D15: -23 | E15: -32 | F15: -29 | H15: -121
A16: Income and mining taxes refunded | D16: 25 | E16: 31 | F16: 0 | H16: 3
A19: Cash generated by operating activities | D19: 1098 | E19: =SUM(E13:E16) -> 489 | F19: =SUM(F13:F16) -> 292 | H19: 2268
A22: Cash flow from investing activities
A23: Decrease/(increase) in restricted cash | D23: 4 | E23: -3 | F23: 0 | H23: -6
A24: Decrease/(increase) in restricted investments | D24: 1 | E24: -24 | F24: 0 | H24: -24
A25: Proceeds on disposal of investments | D25: 0 | E25: 51 | F25: 0 | H25: 51
A26: Net additions to property, plant and equipment1 | D26: -651 | E26: -699 | F26: -684 | H26: -2661
A29: Cash utilised by investing activities | D29: -646 | E29: =SUM(E23:E26) -> -675 | F29: =SUM(F23:F26) -> -684 | G29: 0 | H29: =SUM(H23:H26) -> -2640
A32: Cash flow from financing activities
A33: Borrowings raised | D33: 0 | E33: 0 | F33: 612 | H33: 612
A34: Borrowings repaid | D34: 0 | E34: 0 | F34: -3 | H34: -468
A37: Cash generated by financing activities | D37: 0 | E37: 0 | F37: 609 | H37: 144
A40: Foreign currency translation adjustments | D40: 0 | E40: 7 | F40: -18 | H40: -32
F41: -7
A43: Net increase/(decrease) in cash and cash equivalents | D43: 452 | E43: =E19+E29+E37+E40 -> -179 | F43: =F19+F29+F37+F40 -> 199 | H43: -260
A44: Cash and cash equivalents - beginning of period | D44: 1829 | E44: 2008 | F44: 2089 | H44: 2089
A47: Cash and cash equivalents - end of period | D47: 2281 | E47: =SUM(E43:E44) -> 1829 | F47: =SUM(F43:F44) -> 2288 | H47: 1829
A49: 1 Includes capital expenditure for Wafi-Golpu and other international projects of R15 million in the September 2014 quarter (June 2014 quarter: R12 million) (September 2013 quarter: Rnil) and R12 million in the year ended 30 June 2014.
A51: * Cash generated by operating activiteis and cash utilised by investing activities previously reported as R470 million and (R656 million) restated to R489 million and (R675 million) respectively in the June 2014 quarter. This is mainly related to the change in accounting policy for IFRIC 20.
A53: # Cash generated by operating activities and cash utilised by investing activities previously reported as R235 million and (R627 million) restated to R292 million and (R684 million respectively in the September 2013 quarter. This is mainly related to the change in accounting policy for IFRIC 20.
A56: The accompanying notes are an integral part of these condensed consolidated financial statements.

Sheet Publish - Notes to result
EV1: . | LG1: ……………………………………………………………………………………………………………………………………………………………………………………………………………………………………………………………………………………………………………………………………………………………………………………………………………………………………………………………………………………………………………………………………………………………………………………………………………………………………………………………………………………………….................................................................................................................................................................................
A2: NOTES TO THE CONDENSED CONSOLIDATED FINANCIAL STATEMENTS
A3: for the three months ended 30 September 2014 (Rand)
A4: .
A6: 1 | B6: Accounting policies
B8: Basis of accounting
B9: The condensed consolidated financial statements for the three months ended 30 September 2014 have been prepared in accordance with IAS 34, Interim Financial Reporting, JSE Listings Requirements, SAICA Financial Reporting Guides as issued by the Accounting Practices Committee and Financial Pronouncements as issued by the Financial Reporting Standards Council, and in the manner required by the Companies Act of South Africa. They should be read in conjunction with the annual financial statements for the year ended 30 June 2014, which have been prepared in accordance with International Financial Reporting Standards as issued by the International Accounting Standards Board (IFRS). The accounting policies are consistent with those described in the annual financial statements, except for the adoption of applicable revised and/or new standards issued by the International Accounting Standards Board.
B16: The following accounting standards, amendments to standards and new interpretations have been adopted with effect from 1 July 2014 and had no impact on the financial results of the group:
B19: IFRSs | G19: Annual Improvements 2010 - 2012 Cycle
B20: IAS 32 | G20: Amendment - Presentation - Offsetting Financial Assets and Financial Liabilities
B21: IAS 36 | G21: Amendment - Impairment of Assets - Recoverable amount disclosures for non-financial assets
B22: IFRIC 21 | G22: Levies
A24: 2 | B24: Cost of sales
L26: Quarter ended | O26: Year ended
L27: 30 September | M27: 30 June | N27: 30 September | O27: 30 June
L28: 2014 | M28: 2014 | N28: 2013 | O28: 2014
B29: Figures in million | L29: (Unaudited) | M29: (Unaudited) | N29: (Unaudited) | O29: (Audited)
B32: Production costs - excluding royalty | L32: 3486 | M32: 2891 | N32: 2943 | O32: 11761
B33: Royalty expense | L33: 32 | M33: 25 | N33: 38 | O33: 127
B34: Amortisation and depreciation | L34: 650 | M34: 526 | N34: 577 | O34: 2143
B35: Impairment of assets1 | L35: 0 | M35: 1410 | N35: 0 | O35: 1439
B36: Rehabilitation expenditure/(credit)2 | L36: 14 | M36: -9 | N36: 15 | O36: 8
B37: Care and maintenance cost of restructured shafts | L37: 17 | M37: 13 | N37: 17 | O37: 66
B38: Employment termination and restructuring costs3 | L38: 48 | M38: 40 | N38: 94 | O38: 274
B39: Share-based payments | L39: 73 | M39: 44 | N39: 51 | O39: 270
B40: Other | L40: -1 | M40: 1 | N40: 0 | O40: 0
B43: Total cost of sales | L43: 4319 | M43: 4941 | N43: 3735 | O43: 16088
B47: 1 | D47: The impairment in the June 2014 quarter consists of an impairment of R1.38 billion on Phakisa, R7 million on Steyn 2 and R21 million on St Helena.
B48: 2 | D48: Included in the total for the June 2014 quarter is a credit of R21 million relating to the change in estimate following the annual reassessment.
B49: 3 | D49: Included in the totals for the year ended June 2014 and the June 2014 and September 2013 quarters are amounts relating to the restructuring at Hidden Valley, while all periods include amounts relating to the voluntary retrenchment packages offered in South Africa. The September 2014 quarter total includes amounts provided for employees of Target 3.
A53: 3 | B53: (Loss)/earnings per share
L55: Quarter ended | O55: Year ended
L56: 30 September | M56: 30 June | N56: 30 September | O56: 30 June
L57: 2014 | M57: 2014 | N57: 2013 | O57: 2014
L58: (Unaudited) | M58: (Unaudited) | N58: (Unaudited) | O58: (Audited)
B61: Weighted average number of shares (million) | L61: 434.054257 | M61: 433.9 | N61: 432.6 | O61: 433.2
B62: Weighted average number of diluted shares (million) | L62: 435.442706 | M62: 435.2 | N62: 433 | O62: 434.7
B64: Total (loss)/earnings per share (cents):
B66: Basic (loss)/earnings | L66: -61 | M66: -282 | N66: 3 | O66: -293
B67: Diluted (loss)/earnings | L67: -61 | M67: -282 | N67: 3 | O67: -293
B68: Headline (loss)/earnings | L68: -61 | M68: 30 | N68: 5 | O68: 26
B69: Diluted headline (loss)/earnings | L69: -61 | M69: 30 | N69: 5 | O69: 26
B72: Figures in million
B75: Reconciliation of headline (loss)/earnings:
B77: Net (loss)/profit | L77: -266 | M77: -1223 | N77: 13 | O77: -1270
B79: Adjusted for:
B80: (Profit on disposal)/impairment of investments1 | L80: 0 | M80: -14 | N80: 7 | O80: -7
B81: Impairment of assets | L81: 0 | M81: 1410 | N81: 0 | O81: 1439
B82: Taxation effect on impairment of assets | L82: 0 | M82: -20 | N82: 0 | O82: -24
B83: Profit on sale of property, plant and equipment | L83: 0 | M83: -30 | N83: 0 | O83: -30
B84: Taxation effect of profit on sale of property, plant and equipment | L84: 0 | M84: 6 | N84: 0 | O84: 5.59944
B87: Headline (loss)/earnings | L87: -266 | M87: 129 | N87: 20 | O87: 113.59944
B90: 1 There is no taxation effect on these items.
A92: 4 | B92: Investment in associate
B94: Harmony holds a 10.38% share in Rand Refinery. Due to the issues experienced at Rand Refinery following the implementation of a new Enterprise Resource Planning (ERP) system on 1 April 2013, and the fact that the annual financial statements for the year ended 30 September 2013 have not been finalised, Harmony has provided for its full share of loss for the inventory discrepancy. Therefore, Harmony has recognised a R127 million loss in the June 2014 quarter to account for its share of this discrepancy.
B99: As a precautionary measure following the challenges experienced by the implementation of the software system, Rand Refinery's shareholders have extended Rand Refinery an irrevocable, subordinated loan facility of up to R1.2 billion, which can only be drawn down when there is confirmation that an actual loss has been incurred. The facility, if drawn down, is convertible to equity after a period of two years. Harmony's maximum commitment in terms of this facility will be R140 million. Interest on the facility will be JIBAR plus a margin of 3.5%. The agreements relating to the facility were signed on 23 July 2014.
A104: 5 | B104: Borrowings
B106: There were no draw downs made from the US$300 million syndicated revolving credit facility during the September 2014 quarter and the drawn level remains at US$270 million. The weakening of the Rand against the US$ resulted in a foreign exchange translation loss of R192 million being recorded in the September 2014 quarter (June 2014 quarter: R11 million), increasing the borrowings balance and Other (expenses)/income - net. The facility is repayable by September 2015. As a result, the borrowings balance was reclassified to current liabilities.
B109: At 30 September 2014, the full amount was available on the Nedbank revolving credit facility of R1.3 billion. The facility is available until December 2016.
A111: 6 | B111: Other non-current liabilities
B113: During the September 2014 quarter, negotiations were entered into with the claimants in the matter relating to the pumping and treatment cost of fissure water in the Klerksdorp, Orkney, Stilfontein and Hartbeesfontein (KOSH) Basin. Payment was made to Simmer and Jack Investments Proprietary Limited as full and final settlement during the quarter, while the full and final settlement to Anglogold Ashanti Limited was made in October 2014. The amount owing to Anglogold Ashanti Limited was reclassified to trade and other payables at 30 September 2014.
A118: 7 | B118: Financial risk management activities
B120: Fair value determination
B122: The following table presents the group's assets and liabilities that are measured at fair value by level within the fair value hierarchy:
B125: Level 1: | G125: Quoted prices (unadjusted) in active markets for identical assets;
B126: Level 2: | G126: Inputs other than quoted prices included within level 1 that are observable for the asset, either directly or indirectly (that is, as prices) or indirectly (that is derived from prices);
B128: Level 3: | G128: Inputs for the asset that are not based on observable market data (that is unobservable inputs).
M130: At | N130: At | O130: At
M131: 30 September | N131: 30 June | O131: 30 September
M132: 2014 | N132: 2014 | O132: 2013
B133: Figures in million | M133: (Unaudited) | N133: (Audited) | O133: (Unaudited)
B135: Available-for-sale financial assets1
B136: Level 1 | M136: 0 | N136: 0 | O136: 37
B137: Level 2 | M137: 0 | N137: 0 | O137: 0
B138: Level 3 | M138: 4 | N138: 4 | O138: 5
B139: Fair value through profit or loss2
B140: Level 1 | M140: 0 | N140: 0 | O140: 0
B141: Level 2 | M141: 632 | N141: 798 | O141: 933
B142: Level 3 | M142: 0 | N142: 0 | O142: 0
B145: 1 significant influence. | C145: Level 1 fair values are directly derived from actively traded shares on the JSE.
C146: Level 3 fair values have been valued by the directors by performing independent valuations on an annual basis.
B148: 2 | C148: The majority of the level 2 fair values are directly derived from the Shareholders Weighted Top 40 index (SWIX 40) on the JSE, and are discounted at market interest rate.
A150: 8 | B150: Commitments and contingencies
M152: At | N152: At | O152: At
M153: 30 September | N153: 30 June | O153: 30 September
M154: 2014 | N154: 2014 | O154: 2013
B155: Figures in million | M155: (Unaudited) | N155: (Audited) | O155: (Unaudited)
B158: Capital expenditure commitments:
B159: Contracts for capital expenditure | M159: 206 | N159: 157 | O159: 351
B160: Authorised by the directors but not contracted for | M160: 2359 | N160: 519 | O160: 1835
M162: xx
M163: 2565 | N163: 676 | O163: 2186
B166: This expenditure will be financed from existing resources and, where appropriate, borrowings.
B168: Contingent liabilities
B170: For a detailed disclosure on contingent liabilities refer to Harmony's annual financial statements for the financial year ended 30 June 2014, available on the group's website (www.harmony.co.za). There were no significant changes in contingencies since 30 June 2014, except as discussed below:
B173: (a) | C173: During July 2014, Harmony extended an irrevocable, subordinated loan facility to Rand Refinery. The facility, if drawn down, is convertible to equity after a period of two years. Harmony's maximum commitment in terms of this facility is R140 million. Refer to note 4 for further details.
A176: 9 | B176: Related parties
B178: Key management personnel are those persons having authority and responsibility for planning, directing and controlling the activities of the group, directly or indirectly, including any director (whether executive or otherwise) of the group. There have been no transactions with related parties during the September 2014 quarter.
A182: 10 | B182: Subsequent events
B184: (a) | D184: Refer to note 6 for subsequent changes to the KOSH matter.
B186: (b) | D186: Target 3 was closed at the end of the September 2014 quarter and placed on care and maintenance. The section 189 process is still countinuing and expected to impact approximately 350 employees. Retrenchment costs are expected to be approximately R25 million.
B189: (c) | D189: On 31 October 2014, Harmony announced that it would be closing Kusasalethu for two weeks, following three underground fires started by illegal miners during October 2014. During this period, management aims to remove all illegal miners as well as complete all security and access control measures needed to tighten control on entry and exit from the mine. No production will occur during this period and employees will be sent on leave. This stoppage, togher with the ten production days lost in October 2014 as a result of the fires, will have a negative impact on Kusasalethu's results and therefore on the group's results for the December 2014 quarter.
A195: 11 | B195: Segment report
B197: The segment report follows below.
A199: 12 | B199: Reconciliation of segment information to condensed consolidated income statements and balance sheets
N200: Three months ended
N201: 30 September | O201: 30 September
N202: 2014 | O202: 2013
B203: Figures in million | N203: (Unaudited) | O203: (Unaudited)
B206: The "Reconciliation of segment information to condensed consolidated financial statements" line item in the segment report is broken down in the following elements, to give a better understanding of the differences between the financial statements and segment report:
B210: Reconciliation of production profit to gross profit
B212: Total segment revenue | N212: 4431 | O212: 4018
B213: Total segment production costs | N213: -3518 | O213: -2981
B216: Production profit per segment report | N216: 913 | O216: 1037
B217: Depreciation | N217: -650 | O217: -577
B218: Other cost of sales items | N218: -151 | O218: -177
B221: Gross profit as per income statements 1 | N221: 112 | O221: 283
B223: 1 The reconciliation was done up to the first recognisable line item on the income statement. The reconciliation will follow the income statement after that.
N225: At | O225: At
N226: 30 September | O226: 30 September
N227: 2014 | O227: 2013
B228: Figures in million | N228: (Unaudited) | O228: (Unaudited)
B231: Reconciliation of total segment mining assets to consolidated property, plant and equipment
B232: Property, plant and equipment not allocated to a segment
B233: Mining assets | N233: 779 | O233: 1155
B234: Undeveloped property | N234: 5139 | O234: 5139
B235: Other non-mining assets | N235: 143 | O235: 74
B236: Wafi-Golpu assets | N236: 1140 | O236: 981
N238: 7201 | O238: 7349

Sheet Segment Report (R)
A1: Segment report (Rand/Metric)
A2: for the three months ended 30 September 2014 (Unaudited)
B8: Revenue 30 September | D8: Production cost 30 September | F8: Production profit 30 September | H8: Mining assets 30 September | J8: Capital expenditure# 30 September | L8: Kilograms produced 30 September | N8: Tonnes milled 30 September
B9: 2014 | C9: 2013 | D9: 2014 | E9: 2013 | F9: 2014 | G9: 2013 | H9: 2014 | I9: 2013 | J9: 2014 | K9: 2013 | L9: 2014 | M9: 2013 | N9: 2014 | O9: 2013
B10: R million | D10: R million | F10: R million | H10: R million | J10: R million | L10: kg | N10: t'000
A13: South Africa
A14: Underground
A15: Kusasalethu | B15: 636 | C15: 471 | D15: 582 | E15: 395 | F15: 54 | G15: 76 | H15: 3666 | I15: 3457 | J15: 124 | K15: 120 | L15: 1334 | M15: 1272 | N15: 290 | O15: 329
A16: Doornkop | B16: 309 | C16: 342 | D16: 309 | E16: 288 | F16: 0 | G16: 54 | H16: 3343 | I16: 3375 | J16: 55 | K16: 60 | L16: 619 | M16: 765 | N16: 136 | O16: 236
A17: Phakisa | B17: 385 | C17: 318 | D17: 298 | E17: 265 | F17: 87 | G17: 53 | H17: 4611 | I17: 4534 | J17: 85 | K17: 91 | L17: 855 | M17: 755 | N17: 158 | O17: 156
A18: Tshepong | B18: 486 | C18: 443 | D18: 407 | E18: 346 | F18: 79 | G18: 97 | H18: 3959 | I18: 3918 | J18: 83 | K18: 68 | L18: 1078 | M18: 1049 | N18: 259 | O18: 249
A19: Masimong | B19: 315 | C19: 319 | D19: 258 | E19: 258 | F19: 57 | G19: 61 | H19: 1068 | I19: 1005 | J19: 41 | K19: 38 | L19: 698 | M19: 758 | N19: 185 | O19: 189
A20: Target 1 | B20: 484 | C20: 423 | D20: 312 | E20: 225 | F20: 172 | G20: 198 | H20: 2785 | I20: 2704 | J20: 74 | K20: 62 | L20: 1042 | M20: 1081 | N20: 183 | O20: 191
A21: Bambanani⁽ᵃ⁾ | B21: 328 | C21: 325 | D21: 174 | E21: 169 | F21: 154 | G21: 156 | H21: 834 | I21: 886 | J21: 25 | K21: 33 | L21: 727 | M21: 769 | N21: 59 | O21: 63
A22: Joel | B22: 279 | C22: 297 | D22: 223 | E22: 179 | F22: 56 | G22: 118 | H22: 468 | I22: 329 | J22: 31 | K22: 42 | L22: 533 | M22: 697 | N22: 146 | O22: 159
A23: Unisel | B23: 215 | C23: 201 | D23: 177 | E23: 150 | F23: 38 | G23: 51 | H23: 635 | I23: 344 | J23: 29 | K23: 17 | L23: 477 | M23: 476 | N23: 114 | O23: 108
A24: Target 3 | B24: 205 | C24: 154 | D24: 162 | E24: 127 | F24: 43 | G24: 27 | H24: 551 | I24: 482 | J24: 20 | K24: 35 | L24: 442 | M24: 392 | N24: 81 | O24: 82
F25: 0
A26: Surface
A27: All other surface operations | B27: 381 | C27: 366 | D27: 310 | E27: 267 | F27: 71 | G27: 99 | H27: 475 | I27: 465 | J27: 8 | K27: 8 | L27: 781 | M27: 846 | N27: 2638 | O27: 2781
A30: Total South Africa | B30: 4023 | C30: 3659 | D30: 3212 | E30: 2669 | F30: 811 | G30: 990 | H30: 22395 | I30: 21499 | J30: 575 | K30: 574 | L30: 8586 | M30: 8860 | N30: 4249 | O30: 4543
A33: International
A34: Hidden Valley | B34: 408 | C34: 359 | D34: 306 | E34: 312 | F34: 102 | G34: 47 | H34: 3635.525709 | I34: 3347 | J34: 21 | K34: 48 | L34: 849 | M34: 775 | N34: 521 | O34: 503
A35: Other | B35: 0 | D35: 0 | F35: 0 | G35: 0 | J35: 0 | L35: 0 | N35: 0
A38: Total international | B38: 408 | C38: 359 | D38: 306 | E38: 312 | F38: 102 | G38: 47 | H38: 3635.525709 | I38: 3347 | J38: 21 | K38: 48 | L38: 849 | M38: 775 | N38: 521 | O38: 503
A41: Total operations | B41: 4431 | C41: 4018 | D41: 3518 | E41: 2981 | F41: 913 | G41: 1037 | H41: 26030.52571 | I41: 24846 | J41: 596 | K41: 622 | L41: 9435 | M41: 9635 | N41: 4770 | O41: 5046
A43: Reconciliation of the segment information to the condensed consolidated financial statements (refer to note 12)
H47: 7201 | I47: 7349
B50: 4431 | C50: 4018 | D50: 3518 | E50: 2981 | H50: 33231.52571 | I50: 32195
A53: # Capital expenditure for international operations excludes expenditure spend on Wafi-Golpu of R15 million (2013: Rnil).
A54: ⁽ᵃ⁾ Includes Steyn 2 for the Septemer 2013 amounts.

Sheet Publish IS (US$)
A2: CONDENSED CONSOLIDATED INCOME STATEMENTS (US$)
A3: (Convenience translation)
E5: 30 | F5: 30
D6: Quarter ended | H6: Year ended
D7: 30 September | E7: 30 June | F7: 30 September | H7: 30 June
D8: 2014 | E8: 2014 | F8: 2013 | H8: 2014
A9: Figures in million | D9: (Unaudited) | E9: (Unaudited) | F9: (Unaudited) | H9: (Audited)
A12: Revenue | D12: 412 | E12: 358 | F12: 403 | H12: 1515
A13: Cost of sales | D13: -401 | E13: -469 | F13: -375 | H13: -1549
A16: Production costs | D16: -327 | E16: -277 | F16: -299 | H16: -1148
A17: Amortisation and depreciation | D17: -60 | E17: -50 | F17: -58 | H17: -207
A18: Impairment of assets | D18: 0 | E18: -134 | F18: 0 | H18: -135
A21: Other items | D21: -14 | E21: -8 | F21: -18 | H21: -59
A24: Gross profit/(loss) | D24: 11 | E24: -111 | F24: 28 | H24: -34
A25: Corporate, administration and other expenditure | D25: -10 | E25: -11 | F25: -11 | H25: -42
A26: Social investment expenditure | D26: -2 | E26: -2 | F26: -4 | H26: -9
A27: Exploration expenditure | D27: -8 | E27: -11 | F27: -14 | H27: -44
A28: Profit on sale of property, plant and equipment | D28: 0 | E28: 3 | F28: 0 | H28: 3
A29: Other expenses (net) | D29: -18 | E29: -4 | F29: 0 | H29: -20
A32: Operating loss | D32: -27 | E32: -136 | F32: -1 | H32: -146
A33: Profit from associates | D33: 0 | E33: -12 | F33: 0 | H33: -10
A34: Profit on disposal/(impairment) of investments | D34: 0 | E34: 1 | F34: -1 | H34: 1
A35: Net gain on financial instruments | D35: 1 | E35: 3 | F35: 8 | H35: 16
A36: Investment income | D36: 4 | E36: 6 | F36: 5 | H36: 21
A37: Finance cost | D37: -6 | E37: -10 | F37: -6 | H37: -27
A40: (Loss)/profit before taxation | D40: -28 | E40: -148 | F40: 5 | H40: -145
A41: Taxation | D41: 3 | E41: 32 | F41: -4 | H41: 27
A44: Normal taxation | D44: 0 | E44: 0 | F44: -5 | H44: -2
A45: Deferred taxation | D45: 3 | E45: 32 | F45: 1 | H45: 29
A48: Net (loss)/profit for the period | D48: -25 | E48: -116 | F48: 1 | H48: -118
A51: Attributable to:
A52: Owners of the parent | D52: -25 | E52: -116 | F52: 1 | H52: -118
A53: Non-controlling interest | D53: 0 | E53: 0 | F53: 0
A56: Loss per ordinary share (cents)
A58: Basic loss | D58: -6 | E58: -27 | F58: 0 | H58: -27.30671729
A59: Diluted loss | D59: -6 | E59: -27 | F59: 0 | H59: -27
A64: The currency conversion average rates for the quarter ended: September 2014: US$1 = R10.77 (June 2014: US$1 = R10.51, September 2013: US$1 = R9.96). For year ended: June 2014: US$1 = R10.35.
A67: The income statement for the year ended 30 June 2014 has been extracted from the 2014 annual financial statements.

Sheet Publish Com IS (US$)
A2: CONDENSED CONSOLIDATED STATEMENTS OF COMPREHENSIVE INCOME (US$)
A3: (Convenience translation)
C6: Quarter ended | G6: Year ended
C7: 30 September | D7: 30 June | E7: 30 September | G7: 30 June
C8: 2014 | D8: 2014 | E8: 2013 | G8: 2014
A9: Figures in million | C9: (Unaudited) | D9: (Unaudited) | E9: (Unaudited) | G9: (Audited)
A12: Net (loss)/profit for the period | C12: -25 | D12: -116 | E12: 1 | G12: -118
A13: Other comprehensive income/(loss) for the period, net of income tax | C13: 17 | D13: 59.05143814 | E13: -70 | G13: -208.9949087
A16: Items that may be reclassified subsequently to profit or loss: | C16: 17 | D16: 62 | E16: -70 | F16: 0 | G16: -206
A17: Foreign exchange translation | C17: 17 | D17: 63 | E17: -70 | G17: -206
A18: Movements on investments | C18: 0 | D18: -1 | E18: 0 | G18: 0
A20: Items that will not be reclassified to profit or loss: | C20: 0 | D20: -2.948561863 | E20: 0 | G20: -2.994908655
A21: Acturial loss recognised during the year | C21: 0 | D21: -3.614366154 | E21: 0 | G21: -3.671178352
A22: Deferred taxation thereon | C22: 0 | D22: 0.6658042916 | E22: 0 | G22: 0.6762696964
A25: Total comprehensive loss for the period | C25: -8 | D25: -56.94856186 | E25: -69 | G25: -326.9949087
A28: Attributable to:
A29: Owners of the parent | C29: -8 | D29: -56.94856186 | E29: -69 | G29: -326.9949087
A30: Non-controlling interest | C30: 0 | D30: 0 | E30: 0
A34: The currency conversion average rates for the quarter ended: September 2014: US$1 = R10.77 (June 2014: US$1 = R10.51, September 2013: US$1 = R9.96). For year ended: June 2014: US$1 = R10.35.
A37: The statement of comprehensive income for the year ended 30 June 2014 has been extracted from the 2014 annual financial statements.
A72: Note on convenience translations
A74: Except where specific statements have been extracted from 2014 annual financial statements, the requirements of IAS 21, The Effects of the Changes in Foreign Exchange Rates, have not necessarily been applied in the translation of the US Dollar financial statements.

Sheet Publish CIE (US$)
A2: CONDENSED CONSOLIDATED STATEMENTS OF CHANGES IN EQUITY (US$)
A3: for the three months ended 30 September 2014 (Convenience translation) (Unaudited)
A6: Figures in million | C6: Share capital | D6: Other reserves | E6: (Accumulated loss)/retained earnings | F6: Total
A9: Balance - 30 June 2014 | C9: 2503 | D9: 313 | E9: -73 | F9: 2743
A10: Share-based payments | C10: 0 | D10: 6 | E10: 0 | F10: 6
A11: Net loss for the period | C11: 0 | D11: 0 | E11: -23 | F11: -23
A12: Other comprehensive income for the period | C12: 0 | D12: 16 | E12: 0 | F12: 16
A13: Dividends paid | C13: 0 | D13: 0 | E13: 0 | F13: 0
A16: Balance - 30 September 2014 | C16: 2503 | D16: 335 | E16: -96 | F16: 2742
A19: Balance - 30 June 2013 | C19: 2820 | D19: 343 | E19: 45 | F19: 3208
A20: Share-based payments | C20: 0 | D20: 4 | E20: 0 | F20: 4
A21: Net profit for the period | C21: 0 | D21: 0 | E21: 1 | F21: 1
A22: Other comprehensive loss for the period | C22: 0 | D22: -69 | E22: 0 | F22: -69
A25: Balance - 30 September 2013 | C25: 2820 | D25: 278 | E25: 46 | F25: 3144
A28: The currency conversion closing rates for the period ended 30 September 2014: US$1 = R11.32 (September 2013: US$1 = R10.05).

Sheet Publish BS (US$)
A1: CONDENSED CONSOLIDATED BALANCE SHEETS (US$)
A2: (Convenience translation)
C3: 30 | D3: 30 | E3: 31
C5: At | D5: At | E5: At
C6: 30 September | D6: 30 June | E6: 30 September
C7: 2014 | D7: 2014 | E7: 2013
A8: Figures in million | C8: (Unaudited) | D8: (Audited) | E8: (Unaudited)
A11: ASSETS
A13: Non-current assets
A15: Property, plant and equipment | C15: 2937 | D15: 3116 | E15: 3205
A16: Intangible assets | C16: 78 | D16: 84 | E16: 218
A17: Restricted cash | C17: 3 | D17: 4 | E17: 4
A18: Restricted investments | C18: 206 | D18: 217 | E18: 213
A19: Deferred tax assets | C19: 7 | D19: 8 | E19: 9
A20: Investment in joint ventures | C20: 0 | D20: 0 | E20: 0
A21: Investment in subsidiaries | C21: 0 | D21: 0 | E21: 0
A22: Loans to subsidiaries | C22: 0 | D22: 0 | E22: 0
A23: Investments in associates | C23: 0 | D23: 0 | E23: 11
A24: Investments in financial assets | C24: 0 | D24: 0 | E24: 4
A25: Inventories | C25: 4 | D25: 5 | E25: 6
A26: Trade and other receivables | C26: 0 | D26: 0 | E26: 0
A29: Total non-current assets | C29: 3235 | D29: 3434 | E29: 3670
A33: Current assets
A35: Restricted cash | C35: 1340637 | D35: 2 | E35: -1
A36: Inventories | C36: 123 | D36: 145 | E36: 147
A37: Trade and other receivables | C37: 61 | D37: 90 | E37: 123
A38: Income and mining taxes | C38: 8 | D38: 10 | E38: 10
A39: Restricted cash | C39: 1 | D39: 1 | E39: 0
A40: Cash and cash equivalents | C40: 202 | D40: 172 | E40: 228
A43: Total current assets | C43: 395 | D43: 418 | E43: 508
A48: Total assets | C48: 3630 | D48: 3852 | E48: 4178
A52: EQUITY AND LIABILITIES
A54: Share capital and reserves
A56: Share capital | C56: 2503 | D56: 4035 | E56: 2820
A57: Other reserves | C57: 335 | D57: -887 | E57: 278
A58: (Accumulated loss)/retained earnings | C58: -96 | D58: -223 | E58: 46
A61: Total equity | C61: 2742 | D61: 2925 | E61: 3144
A65: Non-current liabilities
A67: Deferred tax liabilities | C67: 233 | D67: 253 | E67: 298
A68: Provision for environmental rehabilitation | C68: 190 | D68: 198 | E68: 198
A69: Retirement benefit obligation | C69: 22 | D69: 23 | E69: 20
A70: Other non-current liabilities | C70: 4 | D70: 9 | E70: 6
A71: Derivative financial liabilities | C71: 0 | D71: 0 | E71: 0
A72: Borrowings | C72: 0 | D72: 270 | E72: 285
D73: 0
D74: 0
A75: Total non-current liabilities | C75: 449 | D75: 753 | E75: 807
A79: Current liabilities
A81: Borrowings | C81: 270 | D81: 0 | E81: 29
A82: Income and mining taxes | C82: 1 | D82: 0 | E82: 2
A83: Derivative financial liabilities
A84: Trade and other payables | C84: 168 | D84: 174 | E84: 196
A85: Loans from subsidiaries | C85: 0 | D85: 0 | E85: 0
A88: Total current liabilities | C88: 439 | D88: 174 | E88: 227
A92: Total equity and liabilities | C92: 3630 | D92: 3852 | E92: 4178
A96: The balance sheet for September 2014 converted at a conversion rate of US$1 = R11.32 (June 2014: US$1 = R10.61, September 2013 : US$1 = R10.05).
A97: The balance sheet at 30 June 2014 has been extracted from the 2014 annual financial statements.

Sheet Publish - Cash flow (US$)
A2: CONDENSED CONSOLIDATED CASH FLOW STATEMENTS (US$)
A3: (Convenience translation)
D6: Quarter ended | G6: Year ended
D7: 30 September | E7: 30 June | F7: 30 September | G7: 30 June
D8: 2014 | E8: 2014 | F8: 2013 | G8: 2014
D9: (Unaudited) | E9: (Unaudited) | F9: (Unaudited) | G9: (Audited)
A10: Figures in million | E10: Restated* | F10: Restated#
A14: Cash flow from operating activities
A15: Cash generated by operations | D15: 99 | E15: 42 | F15: 30 | G15: 218
A16: Interest and dividends received | D16: 2 | E16: 4 | F16: 3 | G16: 13
A17: Interest paid | D17: -2 | E17: -3 | F17: -3 | G17: -12
A18: Income and mining taxes refunded | D18: 2 | E18: 3 | F18: 0 | G18: 0
A21: Cash generated by operating activities | D21: 101 | E21: 46 | F21: 30 | G21: 219
A24: Cash flow from investing activities
A25: Increase in restricted cash | D25: 0 | E25: 0 | F25: 0 | G25: -1
A26: Increase in restricted investments | D26: 0 | E26: -2 | F26: 0 | G26: -2
A27: Proceeds on disposal of investments | D27: 0 | E27: 5 | F27: 0 | G27: 5
A28: Net additions to property, plant and equipment1 | D28: -60 | E28: -66 | F28: -69 | G28: -257
A31: Cash utilised by investing activities | D31: -60 | E31: -63 | F31: -69 | G31: -255
A34: Cash flow from financing activities
A35: Borrowings raised | D35: 0 | E35: 0 | F35: 61 | G35: 60
A36: Borrowings repaid | D36: 0 | E36: 0 | F36: 0 | G36: -44
A38: Option premium on BEE transaction
A41: Cash generated by financing activities | D41: 0 | E41: 0 | F41: 61 | G41: 16
A44: Foreign currency translation adjustments | D44: -11 | E44: -1 | F44: -3 | G44: -17
A47: Net increase/(decrease) in cash and cash equivalents | D47: 30 | E47: -18 | F47: 19 | G47: -37
A48: Cash and cash equivalents - beginning of period | D48: 172 | E48: 190 | F48: 209 | G48: 209
A51: Cash and cash equivalents - end of period | D51: 202 | E51: 172 | F51: 228 | G51: 172
A54: 1 Includes capital expenditure for Wafi-Golpu and other international projects of US$1 million in the September 2014 quarter (June 2014 quarter: US$1 million) (September 2013 quarter: US$nil) and US$1 million in the year ended 30 June 2014.
A56: * Cash generated by operating activities and cash utilised by investing activities previously reported as US$45 million and (US$62 million) restated to US$46 million and (US$63 million) respectively in the June 2014 quarter. This is mainly related to the change in accounting policy for IFRIC 20.
A58: # Cash generated by operating activities and cash utilised by investing activities previously reported as US$24 million and (US$63 million) restated to US$30 million and (US$69 million) respectively in the September 2013 quarter. This is mainly related to the change in accounting policy for IFRIC 20.
A61: The currency conversion average rates for the quarter ended: September 2014: US$1 = R10.77 (June 2014: US$1 = R10.51, September 2013: US$1 = R9.96). For year ended: June 2014: US$1 = R10.35.
A64: Closing balance translated at closing rates of: September 2014: US$1 = R11.32 (June 2014: US$1 = 10.61, September 2013: US$1 = R10.05).
A65: The cash flow statement for the year ended 30 June 2014 has been extracted from the 2014 annual financial statements.
D69: 0 | E69: 0 | F69: 0

Sheet Segment Report (US$)
A1: Segment report (US$/Imperial)
A2: for the three months ended 30 September 2014 (Unaudited)
B8: Revenue 30 September | D8: Production cost 30 September | F8: Production profit 30 September | H8: Mining assets 30 September | J8: Capital expenditure# 30 September | L8: Ounces produced 30 September | N8: Tons milled 30 September
B9: 2014 | C9: 2013 | D9: 2014 | E9: 2013 | F9: 2014 | G9: 2013 | H9: 2014 | I9: 2013 | J9: 2014 | K9: 2013 | L9: 2014 | M9: 2013 | N9: 2014 | O9: 2013
B10: US$ million | D10: US$ million | F10: US$ million | H10: US$ million | J10: US$ million | L10: oz | N10: t'000
A13: South Africa
A14: Underground
A15: Kusasalethu | B15: 59 | C15: 47 | D15: 54 | E15: 39 | F15: 5 | G15: 8 | H15: 324 | I15: 344 | J15: 11 | K15: 12 | L15: 42889 | M15: 40896 | N15: 320 | O15: 363
A16: Doornkop | B16: 29 | C16: 34 | D16: 29 | E16: 29 | F16: 0 | G16: 5 | H16: 295 | I16: 336 | J16: 5 | K16: 6 | L16: 19901 | M16: 24595 | N16: 149 | O16: 260
A17: Phakisa | B17: 36 | C17: 32 | D17: 28 | E17: 27 | F17: 8 | G17: 5 | H17: 408 | I17: 451 | J17: 8 | K17: 9 | L17: 27489 | M17: 24274 | N17: 174 | O17: 172
A18: Tshepong | B18: 45 | C18: 45 | D18: 38 | E18: 35 | F18: 7 | G18: 10 | H18: 350 | I18: 390 | J18: 7 | K18: 7 | L18: 34658 | M18: 33726 | N18: 286 | O18: 275
A19: Masimong | B19: 29 | C19: 32 | D19: 24 | E19: 26 | F19: 5 | G19: 6 | H19: 94 | I19: 100 | J19: 4 | K19: 4 | L19: 22441 | M19: 24370 | N19: 204 | O19: 208
A20: Target 1 | B20: 45 | C20: 43 | D20: 29 | E20: 23 | F20: 16 | G20: 20 | H20: 246 | I20: 269 | J20: 7 | K20: 6 | L20: 33501 | M20: 34755 | N20: 203 | O20: 211
A21: Bambanani⁽ᵃ⁾ | B21: 30 | C21: 32 | D21: 16 | E21: 16 | F21: 14 | G21: 16 | H21: 74 | I21: 88 | J21: 2 | K21: 3 | L21: 23374 | M21: 24724 | N21: 65 | O21: 69
A22: Joel | B22: 26 | C22: 30 | D22: 21 | E22: 18 | F22: 5 | G22: 12 | H22: 41 | I22: 33 | J22: 3 | K22: 4 | L22: 17136 | M22: 22409 | N22: 161 | O22: 175
A23: Unisel | B23: 20 | C23: 20 | D23: 16 | E23: 15 | F23: 4 | G23: 5 | H23: 56 | I23: 34 | J23: 3 | K23: 2 | L23: 15336 | M23: 15304 | N23: 126 | O23: 119
A24: Target 3 | B24: 19 | C24: 15 | D24: 15 | E24: 13 | F24: 4 | G24: 2 | H24: 49 | I24: 48 | J24: 2 | K24: 4 | L24: 14211 | M24: 12603 | N24: 88 | O24: 90
A26: Surface
A27: All other surface operations | B27: 36 | C27: 37 | D27: 29 | E27: 27 | F27: 7 | G27: 10 | H27: 42 | I27: 46 | J27: 1 | K27: 1 | L27: 25109 | M27: 27200 | N27: 2909 | O27: 3067
A30: Total South Africa | B30: 374 | C30: 367 | D30: 299 | E30: 268 | F30: 75 | G30: 99 | H30: 1979 | I30: 2139 | J30: 53 | K30: 58 | L30: 276045 | M30: 284856 | N30: 4685 | O30: 5009
A33: International
A34: Hidden Valley | B34: 38 | C34: 36 | D34: 28 | E34: 31 | F34: 10 | G34: 5 | H34: 321 | I34: 333 | J34: 2 | K34: 5 | L34: 27296 | M34: 24917 | N34: 575 | O34: 555
A35: Other | B35: 0 | D35: 0 | F35: 0 | G35: 0 | H35: 0 | L35: 0 | N35: 0
A38: Total international | B38: 38 | C38: 36 | D38: 28 | E38: 31 | F38: 10 | G38: 5 | H38: 321 | I38: 333 | J38: 2 | K38: 5 | L38: 27296 | M38: 24917 | N38: 575 | O38: 555
A41: Total operations | B41: 412 | C41: 403 | D41: 327 | E41: 299 | F41: 85 | G41: 104 | H41: 2300 | I41: 2472 | J41: 55 | K41: 63 | L41: 303341 | M41: 309773 | N41: 5260 | O41: 5564
A44: # Capital expenditure for international operations excludes expenditure spend on Wafi-Golpu of US$1 million (2013: US$nil).
A45: ⁽ᵃ⁾ Includes Steyn 2 for the September 2013 amounts
E953: A 10% decrease in the gold price at the reporting date would have resulted in the following additional impairments being recognised in the 2010 and 2009 financial year. This analysis assumes that all other variables remain constant. The analysis is performed on the same basis for 2009.
I961: 9 | M961: President Steyn 2
I962: 140 | M962: Evander 8
I968: 149
